fUST/lending_fUST_20250716
["ID","MTS","AMOUNT","RATE_DAILY","PERIOD"]
[372348235,1752604245919,-500.0,0.00024928,10]
[372348236,1752604245930,-500.0,0.00024928,10]
[372348237,1752604245941,-500.0,0.00024928,10]
[372348238,1752604245952,-500.0,0.00024928,10]
[372348240,1752604245962,-500.0,0.00024929,10]
[372348241,1752604245975,-500.0,0.00024929,10]
[372348242,1752604245986,-500.0,0.00024929,10]
[372348243,1752604245997,-500.0,0.00024929,10]
[372348244,1752604246007,-500.0,0.00024929,10]
[372348245,1752604246018,-500.0,0.00024929,10]
[372348246,1752604246029,-500.0,0.00024929,10]
[372348247,1752604246041,-500.0,0.00024929,10]
[372348248,1752604246052,-500.0,0.00024929,10]
[372348249,1752604246064,-500.0,0.00024929,10]
[372348250,1752604246075,-500.0,0.00024929,10]
[372348251,1752604246086,-500.0,0.0002493,10]
[372348252,1752604246096,-500.0,0.0002493,10]
[372348253,1752604246107,-500.0,0.0002493,10]
[372348254,1752604246118,-500.0,0.0002493,10]
[372348255,1752604246128,-500.0,0.0002493,10]
[372348256,1752604246139,-500.0,0.0002493,10]
[372348257,1752604246149,-500.0,0.0002493,10]
[372348258,1752604246160,-520.84375,0.0002493,10]
[372348259,1752604246171,-1119.38090441,0.0002494,2]
[372348260,1752604246182,-168.0,0.00024968,2]
[372348261,1752604246192,-1370.58021815,0.0002498,2]
[372348262,1752604246203,-449317.86602124,0.0002499,4]
[372348263,1752604246215,-151.0,0.0002499,7]
[372348264,1752604246226,-151.0,0.0002499,7]
[372348265,1752604246236,-151.0,0.0002499,7]
[372348266,1752604246247,-151.0,0.0002499,7]
[372348267,1752604246259,-151.0,0.0002499,7]
[372348268,1752604246270,-151.0,0.0002499,7]
[372348269,1752604246281,-151.0,0.0002499,7]
[372348270,1752604246290,-151.0,0.0002499,7]
[372348271,1752604246300,-224.146539,0.0002499,7]
[372348272,1752604246309,-151.0,0.0002499,7]
[372348273,1752604246319,-151.0,0.0002499,7]
[372348274,1752604246329,-203.49208167,0.0002499,7]
[372348275,1752604246340,-1119.38090441,0.0002499,2]
[372348276,1752604246352,-151.0,0.0002499,7]
[372348277,1752604246362,-157.3,0.00025,7]
[372348278,1752604246372,-150.0,0.00025,2]
[372348279,1752604246382,-151.0,0.00025037,7]
[372348280,1752604246539,-1119.38090441,0.0002504,2]
[372348281,1752604246549,-168.0,0.00025069,2]
[372348282,1752604246559,-1119.38090441,0.0002509,2]
[372348283,1752604246568,-1119.38090441,0.0002514,2]
[372348284,1752604246578,-168.0,0.00025156,2]
[372348285,1752604246589,-1119.38090441,0.0002519,2]
[372348286,1752604246598,-500.0,0.00025198,10]
[372348287,1752604246608,-500.0,0.00025198,10]
[372348288,1752604246617,-500.0,0.00025198,10]
[372348289,1752604246626,-500.0,0.00025198,10]
[372348290,1752604246635,-500.0,0.00025199,10]
[372348291,1752604246645,-500.0,0.00025199,10]
[372348292,1752604246654,-642.81,0.000252,2]
[372348293,1752604246663,-746.93,0.000252,2]
[372348294,1752604246673,-498.8,0.00025201,2]
[372348295,1752604246682,-522.65,0.00025201,2]
[372348296,1752604246692,-956.9,0.00025201,2]
[372348297,1752604246702,-500.0,0.00025203,10]
[372348298,1752604246711,-500.0,0.00025203,10]
[372348299,1752604246721,-500.0,0.00025203,10]
[372348300,1752604246730,-500.0,0.00025203,10]
[372348301,1752604246739,-500.0,0.00025203,10]
[372348302,1752604246748,-500.0,0.00025203,10]
[372348303,1752604246759,-500.0,0.00025204,10]
[372348304,1752604246768,-500.0,0.00025204,10]
[372348305,1752604246777,-500.0,0.00025204,10]
[372348306,1752604246787,-500.0,0.00025204,10]
[372348307,1752604246797,-500.0,0.00025204,10]
[372348308,1752604246807,-349.01881531,0.00025204,10]
[372348309,1752604246816,-500.0,0.00025215,10]
[372348310,1752604246825,-500.0,0.00025215,10]
[372348311,1752604246835,-500.0,0.00025232,10]
[372348312,1752604246845,-500.0,0.00025232,10]
[372348313,1752604246854,-5989.46957946,0.0002524,7]
[372348314,1752604246864,-1119.38090441,0.0002524,2]
[372348315,1752604246873,-1119.38090441,0.0002529,2]
[372348316,1752604246882,-2000.0,0.000253,2]
[372348317,1752604246892,-2000.0,0.000253,2]
[372348318,1752604246902,-2000.0,0.000253,2]
[372348319,1752604246912,-12535.95,0.000253,7]
[372348320,1752604246922,-1379.224969,0.000253,5]
[372348321,1752604246931,-904.71,0.000253,31]
[372348322,1752604246940,-904.71,0.000253,31]
[372348323,1752604246952,-904.71,0.000253,31]
[372348324,1752604246961,-904.71,0.000253,31]
[372348325,1752604246971,-904.71,0.000253,31]
[372348326,1752604246981,-904.71,0.000253,31]
[372348327,1752604246990,-904.71,0.000253,31]
[372348328,1752604247001,-904.71,0.000253,31]
[372348329,1752604247011,-904.71,0.000253,31]
[372348330,1752604247020,-904.71,0.000253,31]
[372348331,1752604247029,-904.71,0.000253,31]
[372348332,1752604247039,-904.71,0.000253,31]
[372348333,1752604247048,-904.71,0.000253,31]
[372348334,1752604247058,-904.71,0.000253,31]
[372348335,1752604247067,-904.71,0.000253,31]
[372348336,1752604247076,-904.71,0.000253,31]
[372348337,1752604247086,-1019.5855693,0.0002533,2]
[372348338,1752604247095,-1119.38090441,0.0002534,2]
[372348339,1752604247105,-151.0,0.00025384,7]
[372348340,1752604247114,-2620.46,0.00025386,7]
[372348341,1752604247124,-14820.02,0.000254,2]
[372348342,1752604247133,-168.0,0.00025404,2]
[372348343,1752604247143,-4125.32,0.00025422,30]
[372348344,1752604247152,-520.84375,0.0002543,30]
[372348345,1752604247161,-520.84375,0.0002543,10]
[372348346,1752604247170,-151.0,0.00025435,7]
[372348347,1752604247179,-175.710177,0.00025435,7]
[372348348,1752604247189,-626782.85497616,0.0002544,20]
[372348349,1752604247199,-192439.94392258,0.0002544,20]
[372348350,1752604247209,-2171308.83838974,0.0002544,20]
[372348364,1752604503136,1129.0715414,0.0002544,120]
[372348365,1752604560516,208.784517,0.00013699,2]
[372348442,1752605133836,2431.99456438,0.00019173,2]
[372348443,1752605133860,15000.0,0.00019173,2]
[372348444,1752605133886,7468.00543562,0.00019173,2]
[372348445,1752605136227,-158.99803091,0.00020087,2]
[372348446,1752605136249,-182.50890716,0.00020087,2]
[372348447,1752605136272,-207.4,0.00020157,2]
[372348448,1752605136294,-300.0,0.00020167,2]
[372348449,1752605136317,-300.0,0.00020167,2]
[372348450,1752605136340,-300.0,0.00020167,2]
[372348451,1752605136362,-747.08319034,0.00020167,2]
[372348452,1752605154739,222.2771513,0.00019206,2]
[372348453,1752605232204,-452.91680966,0.00020167,2]
[372348454,1752605232234,-463.29777052,0.00020167,2]
[372348455,1752605232259,-250.3708949,0.00020167,2]
[372348456,1752605232282,-315.75863834,0.00020167,2]
[372348457,1752605244086,-158.99803085,0.00020087,2]
[372348458,1752605244107,-144.24136166,0.00020167,2]
[372348459,1752605244129,-300.0,0.00020167,2]
[372348460,1752605244154,-460.0,0.00020168,2]
[372348461,1752605244174,-460.0,0.00020168,2]
[372348462,1752605244195,-460.0,0.00020168,2]
[372348463,1752605244217,-460.0,0.00020168,2]
[372348464,1752605244239,-463.17609416,0.00020168,2]
[372348465,1752605244261,-460.0,0.00020168,2]
[372348466,1752605244281,-460.0,0.00020168,2]
[372348467,1752605244302,-460.0,0.00020168,2]
[372348468,1752605244324,-550.42758763,0.00020168,2]
[372348469,1752605244352,-460.0,0.00020168,2]
[372348470,1752605244374,-460.0,0.00020168,2]
[372348471,1752605244398,-222.82931913,0.00020168,2]
[372348472,1752605253202,-158.06215909,0.00020168,2]
[372348486,1752605432078,-207.4,0.00020157,2]
[372348487,1752605432091,-1200.0,0.00020166,2]
[372348488,1752605432100,-73.15487187,0.00020167,2]
[372348489,1752605432113,-386.84512813,0.00020167,2]
[372348490,1752605432122,-420.43318172,0.00020167,2]
[372348491,1752605432133,-460.0,0.00020167,2]
[372348492,1752605432143,-460.0,0.00020167,2]
[372348493,1752605432153,-460.0,0.00020167,2]
[372348495,1752605432162,-427.84210958,0.00020167,2]
[372348496,1752605432174,-32.15789042,0.00020167,2]
[372348497,1752605432184,-460.0,0.00020167,2]
[372348499,1752605432194,-460.0,0.00020167,2]
[372348501,1752605432204,-460.0,0.00020167,2]
[372348503,1752605432221,-460.0,0.00020167,2]
[372348504,1752605432230,-79.10852178,0.00020168,2]
[372348505,1752605432240,-460.0,0.00020168,2]
[372348506,1752605432251,-460.0,0.00020168,2]
[372348507,1752605432260,-460.0,0.00020168,2]
[372348508,1752605432269,-460.0,0.00020168,2]
[372348509,1752605432279,-460.0,0.00020168,2]
[372348511,1752605432290,-316.22756802,0.00020168,2]
[372348513,1752605432299,-460.0,0.00020168,2]
[372348515,1752605432308,-460.0,0.00020168,2]
[372348517,1752605432317,-460.0,0.00020168,2]
[372348519,1752605432326,-460.0,0.00020168,2]
[372348521,1752605432336,-515.54777114,0.00020168,2]
[372348523,1752605432345,-460.0,0.00020168,2]
[372348525,1752605432354,-460.0,0.00020168,2]
[372348527,1752605432364,-1000.0,0.00020168,2]
[372348529,1752605432374,-460.0,0.00020168,2]
[372348531,1752605432384,-460.0,0.00020168,2]
[372348533,1752605432395,-460.0,0.00020168,2]
[372348535,1752605432405,-460.0,0.00020168,2]
[372348537,1752605432414,-460.0,0.00020168,2]
[372348539,1752605432423,-460.0,0.00020168,2]
[372348541,1752605432432,-460.0,0.00020168,2]
[372348543,1752605432442,-460.0,0.00020168,2]
[372348545,1752605432452,-460.0,0.00020168,2]
[372348547,1752605432461,-460.0,0.00020168,2]
[372348549,1752605432473,-460.0,0.00020168,2]
[372348551,1752605432482,-460.0,0.00020168,2]
[372348553,1752605432491,-460.0,0.00020168,2]
[372348555,1752605432501,-460.0,0.00020168,2]
[372348557,1752605432511,-460.0,0.00020168,2]
[372348559,1752605432520,-460.0,0.00020168,2]
[372348561,1752605432530,-460.0,0.00020168,2]
[372348563,1752605432539,-460.0,0.00020168,2]
[372348565,1752605432549,-460.0,0.00020168,2]
[372348567,1752605432558,-460.0,0.00020168,2]
[372348569,1752605432568,-34.16291361,0.00020168,2]
[372348572,1752605432580,-217.12372565,0.00020168,2]
[372348574,1752605432589,-271.00324965,0.00020168,2]
[372348576,1752605432604,-309.52675035,0.00020168,2]
[372348578,1752605432613,-433.98129126,0.00020168,2]
[372348581,1752605432625,-26.01870874,0.00020168,2]
[372348583,1752605432635,-460.0,0.00020168,2]
[372348585,1752605432644,-262.88227388,0.00020168,2]
[372348587,1752605432655,-136.32772612,0.00020168,2]
[372348589,1752605432664,-460.0,0.00020168,2]
[372348591,1752605432673,-460.0,0.00020168,2]
[372348593,1752605432683,-485.32,0.00020168,2]
[372348595,1752605432692,-460.0,0.00020168,2]
[372348597,1752605432701,-460.0,0.00020168,2]
[372348599,1752605432711,-460.0,0.00020168,2]
[372348601,1752605432723,-531.90489473,0.00020168,2]
[372348603,1752605432733,-460.0,0.00020168,2]
[372348605,1752605432742,-465.19038475,0.00020168,2]
[372348607,1752605432752,-460.0,0.00020168,2]
[372348609,1752605432761,-460.0,0.00020168,2]
[372348611,1752605432771,-500.0,0.00020168,2]
[372348613,1752605432780,-500.0,0.00020168,2]
[372348615,1752605432789,-500.0,0.00020168,2]
[372348617,1752605432799,-152.00966983,0.00020168,2]
[372348619,1752605432808,-500.0,0.00020168,2]
[372348621,1752605432818,-500.0,0.00020168,2]
[372348623,1752605432827,-500.0,0.00020168,2]
[372348625,1752605432837,-4303.8648087,0.00020169,2]
[372348627,1752605432849,-293.65114849,0.00020169,2]
[372348630,1752605432860,-11662.0,0.00020169,2]
[372349078,1752605437872,-460.0,0.00020167,2]
[372349079,1752605437887,-22849.74665101,0.00020169,2]
[372349080,1752605437977,-10328.83363988,0.00020169,2]
[372349081,1752605437989,-65131.61848036,0.00020169,2]
[372349082,1752605438000,-6113.8,0.00020169,2]
[372349426,1752605446084,-165.18968136,0.00020087,2]
[372349428,1752605446094,-460.0,0.00020167,2]
[372349430,1752605446104,-413.39621668,0.00020168,2]
[372349432,1752605446114,-460.0,0.00020168,2]
[372349434,1752605446124,-460.0,0.00020168,2]
[372349436,1752605446133,-460.0,0.00020168,2]
[372349438,1752605446143,-460.0,0.00020168,2]
[372349440,1752605446153,-12829.46410196,0.00020169,2]
[372352094,1752605682867,228.102434,0.00013699,2]
[372352095,1752605755095,170.98261317,0.00019987,2]
[372352102,1752606236056,6910.63236591,0.00019257,2]
[372352103,1752606236080,3884.57626169,0.00019257,2]
[372352104,1752606333144,-282.59125597,0.00020066,2]
[372352105,1752606333167,-1090.93158625,0.00020067,2]
[372352106,1752606342122,-109.06841375,0.00020067,2]
[372352107,1752606342143,-300.0,0.00020067,2]
[372352108,1752606342163,-300.0,0.00020067,2]
[372352109,1752606342184,-9.08899013,0.00020067,2]
[372352110,1752606428086,-300.0,0.00020067,2]
[372352111,1752606428109,-300.0,0.00020067,2]
[372352112,1752606428131,-119.49921639,0.00020067,2]
[372352113,1752606431098,-1080.50078361,0.00020067,2]
[372352114,1752606431133,-300.0,0.00020067,2]
[372352115,1752606431168,-3957.36335942,0.00020068,2]
[372352116,1752606431204,-460.0,0.00020068,2]
[372352117,1752606431243,-460.0,0.00020068,2]
[372352118,1752606431289,-460.0,0.00020068,2]
[372352119,1752606431332,-460.00000066,0.00020068,2]
[372352120,1752606431370,-125.44506512,0.00020068,2]
[372352160,1752606632338,-359.0,0.00020067,2]
[372352162,1752606632347,-132.26652564,0.00020068,2]
[372352164,1752606632356,-92.16935836,0.00020068,2]
[372352188,1752606638151,-368.75212669,0.00020068,2]
[372352190,1752606638162,-420.42735733,0.00020068,2]
[372352192,1752606638171,-460.0,0.00020068,2]
[372352194,1752606638181,-460.0,0.00020068,2]
[372352197,1752606638190,-460.0,0.00020068,2]
[372352200,1752606638200,-460.0,0.00020068,2]
[372352203,1752606638210,-460.0,0.00020068,2]
[372352206,1752606638220,-460.0,0.00020068,2]
[372352209,1752606638230,-460.0,0.00020068,2]
[372352212,1752606638239,-460.55266703,0.00020068,2]
[372352215,1752606638249,-460.0,0.00020068,2]
[372352218,1752606638259,-460.0,0.00020068,2]
[372352221,1752606638268,-460.0,0.00020068,2]
[372352224,1752606638278,-460.0,0.00020068,2]
[372352227,1752606638287,-445.58,0.00020068,2]
[372352230,1752606638296,-460.0,0.00020068,2]
[372352233,1752606638306,-460.0,0.00020068,2]
[372352236,1752606638315,-460.0,0.00020068,2]
[372352238,1752606638325,-460.0,0.00020068,2]
[372352240,1752606638334,-460.0,0.00020068,2]
[372352243,1752606638344,-530.91107712,0.00020068,2]
[372352246,1752606638353,-460.0,0.00020068,2]
[372352249,1752606638362,-460.0,0.00020068,2]
[372352251,1752606638372,-460.0,0.00020068,2]
[372352253,1752606638382,-460.0,0.00020068,2]
[372352255,1752606638392,-460.0,0.00020068,2]
[372352256,1752606638402,-460.0,0.00020068,2]
[372352257,1752606638412,-460.0,0.00020068,2]
[372352259,1752606638421,-460.0,0.00020068,2]
[372352261,1752606638431,-500.0,0.00020068,2]
[372352262,1752606638440,-500.0,0.00020068,2]
[372352263,1752606638454,-500.0,0.00020068,2]
[372352264,1752606638463,-500.0,0.00020068,2]
[372352265,1752606638474,-206.40676888,0.00020068,2]
[372352266,1752606638483,-2315.59740689,0.00020069,2]
[372352267,1752606638495,-822.5999998,0.00020069,2]
[372352268,1752606640205,-452.54445457,0.00020068,2]
[372352269,1752606640215,-14905.45554543,0.00020069,2]
[372352313,1752606686578,294.41350842,0.00019967,2]
[372352315,1752606917164,245.611093,0.00013699,2]
[372352316,1752606931073,10575.39913689,0.00019969,2]
[372352318,1752607349104,-323.28511044,0.000199,2]
[372352319,1752607349134,-298.87,0.00019959,3]
[372352320,1752607349163,-460.0,0.00019968,2]
[372352321,1752607349192,-460.0,0.00019968,2]
[372352322,1752607349221,-460.0,0.00019968,2]
[372352323,1752607349252,-460.0,0.00019968,2]
[372352324,1752607349282,-460.0,0.00019968,2]
[372352325,1752607349312,-460.0,0.00019968,2]
[372352326,1752607349340,-463.09784621,0.00019968,2]
[372352327,1752607349370,-460.0,0.00019968,2]
[372352328,1752607349398,-362.73671878,0.00019968,2]
[372352329,1752607349426,-460.0,0.00019968,2]
[372352330,1752607349454,-460.0,0.00019968,2]
[372352331,1752607349483,-562.05154443,0.00019968,2]
[372352332,1752607349510,-397.00523425,0.00019968,2]
[372352333,1752607349540,-250.93552101,0.00019968,2]
[372352334,1752607349568,-460.0,0.00019968,2]
[372352335,1752607349597,-24.03604976,0.00019968,2]
[372352336,1752607349894,-435.96395024,0.00019968,2]
[372352337,1752607349923,-500.0,0.00019968,2]
[372352338,1752607349952,-500.0,0.00019968,2]
[372352339,1752607349983,-544.48473821,0.00019968,2]
[372352340,1752607350012,-878.80901511,0.00019969,2]
[372352341,1752607350627,-6782.27767331,0.00019969,2]
[372352342,1752607350905,-15000.0,0.00019969,2]
[372352343,1752607351486,-15000.0,0.00019969,2]
[372352344,1752607351842,-15000.0,0.00019969,2]
[372352345,1752607352136,-15000.0,0.00019969,2]
[372352346,1752607352360,-15000.0,0.00019969,2]
[372352347,1752607373017,-460.0,0.00019968,2]
[372352348,1752607373056,-9080.0,0.00019969,2]
[372352349,1752607373206,-10000.0,0.00019969,2]
[372352350,1752607373509,-10000.0,0.00019969,2]
[372352351,1752607373709,-10000.0,0.00019969,2]
[372352352,1752607373927,-10000.0,0.00019969,2]
[372352353,1752607374142,-10000.0,0.00019969,2]
[372352354,1752607374319,-10000.0,0.00019969,2]
[372352355,1752607374523,-10000.0,0.00019969,2]
[372352356,1752607374696,-10000.0,0.00019969,2]
[372352357,1752607374870,-10000.0,0.00019969,2]
[372352358,1752607397480,-460.0,0.00019968,2]
[372352359,1752607397513,-452.33388712,0.00019968,2]
[372352360,1752607397544,-300.0,0.00019968,2]
[372352361,1752607397577,-460.0,0.00019968,2]
[372352362,1752607397627,-460.0,0.00019968,2]
[372352363,1752607397744,-5735.33222576,0.00019969,2]
[372352364,1752607397784,-10000.0,0.00019969,2]
[372352365,1752607398012,-10000.0,0.00019969,2]
[372352366,1752607398492,-10000.0,0.00019969,2]
[372352367,1752607398506,-10000.0,0.00019969,2]
[372352368,1752607398700,-10000.0,0.00019969,2]
[372352369,1752607556181,-1017.0,0.00019017,2]
[372352370,1752607556381,-1837.05998866,0.00019018,2]
[372352371,1752607559085,-525.72821129,0.00019018,2]
[372352373,1752607629494,154.51230168,7.5e-07,2]
[372352374,1752607636234,-1154.39382065,0.00019018,2]
[372352375,1752607642073,-6265.16444993,0.00019018,2]
[372352376,1752607651121,-217.65352947,0.00019018,2]
[372352377,1752607651141,-178.96768194,0.00019868,2]
[372352378,1752607651160,-160.0,0.00019959,2]
[372352379,1752607651181,-300.0,0.00019966,2]
[372352380,1752607651200,-300.0,0.00019966,2]
[372352381,1752607651220,-281.74443626,0.00019967,2]
[372352383,1752607724450,460.0,0.00025424,120]
[372352390,1752607756103,-279.05784794,0.00019367,2]
[372352391,1752607756125,-76.7792923,0.00019868,2]
[372352424,1752607832450,-178.756367,0.00019178,2]
[372352425,1752607832460,-264.25904934,0.00019868,2]
[372352426,1752607832470,-160.0,0.00019962,2]
[372352427,1752607832479,-300.0,0.00019965,2]
[372352429,1752607832489,-460.0,0.00019966,2]
[372352431,1752607832499,-462.20486985,0.00019966,2]
[372352433,1752607832510,-460.0,0.00019966,2]
[372352434,1752607832521,-460.0,0.00019966,2]
[372352435,1752607832532,-460.44533274,0.00019966,2]
[372352436,1752607832542,-493.38,0.00019966,2]
[372352437,1752607832551,-1000.0,0.00019966,2]
[372352438,1752607832562,-225.65865543,0.00019966,2]
[372352439,1752607832572,-460.0,0.00019966,2]
[372352440,1752607832585,-263.57426695,0.00019966,2]
[372352441,1752607832599,-460.0,0.00019966,2]
[372352442,1752607832610,-487.07486342,0.00019966,2]
[372352443,1752607832622,-12.92513658,0.00019966,2]
[372352444,1752607832632,-500.0,0.00019966,2]
[372352445,1752607832641,-500.0,0.00019966,2]
[372352446,1752607832651,-500.0,0.00019966,2]
[372352447,1752607832661,-500.0,0.00019966,2]
[372352448,1752607832671,-165.0579693,0.00019966,2]
[372352450,1752607832683,-334.9420307,0.00019966,2]
[372352452,1752607832693,-500.0,0.00019966,2]
[372352453,1752607832703,-500.0,0.00019966,2]
[372352455,1752607832712,-500.0,0.00019966,2]
[372352457,1752607832722,-500.0,0.00019966,2]
[372352459,1752607832731,-500.0,0.00019966,2]
[372352460,1752607832741,-500.0,0.00019966,2]
[372352461,1752607832751,-500.0,0.00019966,2]
[372352462,1752607832760,-500.0,0.00019966,2]
[372352463,1752607832770,-500.0,0.00019966,2]
[372352464,1752607832779,-500.0,0.00019966,2]
[372352466,1752607832788,-500.0,0.00019966,2]
[372352473,1752607832914,-500.0,0.00019966,2]
[372352474,1752607832930,-500.0,0.00019966,2]
[372352475,1752607832939,-500.0,0.00019966,2]
[372352476,1752607832950,-500.0,0.00019966,2]
[372352477,1752607832962,-336.12897012,0.00019966,2]
[372352478,1752607832972,-178.25556374,0.00019967,2]
[372352479,1752607832981,-460.0,0.00019967,2]
[372352480,1752607832991,-460.0,0.00019967,2]
[372352481,1752607833003,-460.0,0.00019967,2]
[372352482,1752607833013,-460.0,0.00019967,2]
[372352483,1752607833022,-1003.16546025,0.00019968,2]
[372352484,1752607833032,-460.0,0.00019968,2]
[372352485,1752607833041,-460.0,0.00019968,2]
[372352486,1752607833051,-460.0,0.00019968,2]
[372352487,1752607833061,-460.0,0.00019968,2]
[372352488,1752607833071,-460.0,0.00019968,2]
[372352489,1752607833081,-363.21626687,0.00019968,2]
[372352490,1752607833091,-462.00071874,0.00019968,2]
[372352491,1752607833100,-461.77073188,0.00019968,2]
[372352492,1752607833110,-461.92584145,0.00019968,2]
[372352493,1752607833120,-460.0,0.00019968,2]
[372352494,1752607833130,-460.0,0.00019968,2]
[372352495,1752607833141,-460.0,0.00019968,2]
[372352496,1752607833151,-460.0,0.00019968,2]
[372352497,1752607833161,-522.92,0.00019968,2]
[372352498,1752607833170,-460.0,0.00019968,2]
[372352499,1752607833180,-460.0,0.00019968,2]
[372352500,1752607833190,-460.0,0.00019968,2]
[372352501,1752607833201,-460.0,0.00019968,2]
[372352502,1752607833211,-460.0,0.00019968,2]
[372352503,1752607833221,-522.19,0.00019968,2]
[372352504,1752607833231,-694.86,0.00019968,2]
[372352505,1752607833241,-460.0,0.00019968,2]
[372352506,1752607833252,-460.0,0.00019968,2]
[372352507,1752607833261,-460.0,0.00019968,2]
[372352508,1752607833272,-460.0,0.00019968,2]
[372352509,1752607833282,-460.0,0.00019968,2]
[372352510,1752607833293,-460.0,0.00019968,2]
[372352511,1752607833303,-460.0,0.00019968,2]
[372352512,1752607833313,-460.0,0.00019968,2]
[372352513,1752607833324,-500.0,0.00019968,2]
[372352514,1752607833333,-460.0,0.00019968,2]
[372352515,1752607833343,-460.0,0.00019968,2]
[372352516,1752607833353,-249.27,0.00019968,2]
[372352517,1752607833363,-460.0,0.00019968,2]
[372352518,1752607833373,-460.0,0.00019968,2]
[372352519,1752607833383,-460.0,0.00019968,2]
[372352520,1752607833393,-460.0,0.00019968,2]
[372352521,1752607833403,-460.0,0.00019968,2]
[372352522,1752607833412,-460.0,0.00019968,2]
[372352523,1752607833422,-460.0,0.00019968,2]
[372352524,1752607833431,-460.0,0.00019968,2]
[372352525,1752607833441,-460.0,0.00019968,2]
[372352526,1752607833452,-461.6212784,0.00019968,2]
[372352527,1752607833461,-460.0,0.00019968,2]
[372352528,1752607833471,-460.0,0.00019968,2]
[372352529,1752607833481,-442.57590828,0.00019968,2]
[372352530,1752607833490,-460.0,0.00019968,2]
[372352531,1752607833499,-460.0,0.00019968,2]
[372352532,1752607833508,-460.0,0.00019968,2]
[372352533,1752607833518,-460.0,0.00019968,2]
[372352534,1752607833527,-460.0,0.00019968,2]
[372352535,1752607833537,-460.0,0.00019968,2]
[372352536,1752607833547,-460.0,0.00019968,2]
[372352537,1752607833556,-4198.63380381,0.00019969,2]
[372352538,1752607833566,-5284.15834149,0.0002,20]
[372352539,1752607833576,-224.61544786,0.00020068,2]
[372352540,1752607833585,-460.0,0.00020068,2]
[372352541,1752607833595,-460.0,0.00020068,2]
[372352542,1752607833604,-460.0,0.00020068,2]
[372352543,1752607833614,-460.0,0.00020068,2]
[372352544,1752607833623,-460.0,0.00020068,2]
[372352545,1752607833633,-460.0,0.00020068,2]
[372352546,1752607833642,-460.0,0.00020068,2]
[372352547,1752607833651,-460.0,0.00020068,2]
[372352548,1752607833660,-460.0,0.00020068,2]
[372352549,1752607833669,-460.0,0.00020068,2]
[372352550,1752607833679,-460.0,0.00020068,2]
[372352551,1752607833688,-460.0,0.00020068,2]
[372352552,1752607833698,-475.70883072,0.00020068,2]
[372352553,1752607833708,-460.0,0.00020068,2]
[372352554,1752607833717,-460.0,0.00020068,2]
[372352555,1752607833727,-460.0,0.00020068,2]
[372352556,1752607833736,-460.0,0.00020068,2]
[372352557,1752607833746,-460.0,0.00020068,2]
[372352558,1752607833755,-460.0,0.00020068,2]
[372352559,1752607833765,-460.0,0.00020068,2]
[372352560,1752607833775,-460.0,0.00020068,2]
[372352561,1752607833785,-460.0,0.00020068,2]
[372352562,1752607833795,-346.70311645,0.00020068,2]
[372352563,1752607833805,-262.11852862,0.00020068,2]
[372352564,1752607833817,-197.88147138,0.00020068,2]
[372352565,1752607833827,-228.29852862,0.00020068,2]
[372352566,1752607833838,-231.70147138,0.00020068,2]
[372352567,1752607833848,-460.0,0.00020068,2]